bitfinex-derivatives/quotes_BTCF0:USTF0_20241122
["timestamp","ask_amount","ask_price","bid_price","bid_amount"]
[1732296142944,0.00066898,99229.0,99215.0,0.89374682]
[1732296143247,0.00010897,99229.0,99228.0,0.3608]
[1732296143446,0.00010897,99229.0,99228.0,0.4108]
[1732296143752,0.00010897,99229.0,99228.0,0.46113]
[1732296144247,0.050323,99244.0,99228.0,0.61225839]
[1732296144442,0.3608,99248.0,99236.0,0.050326]
[1732296144638,0.3608,99248.0,99237.0,0.3608]
[1732296145143,0.3608,99248.0,99238.0,0.050325]
[1732296145348,0.050319,99251.0,99246.0,0.3608]
[1732296145566,0.5,99255.0,99240.0,0.09754832]
[1732296145844,0.5,99255.0,99246.0,0.3608]
[1732296146048,0.5,99255.0,99246.0,0.7308]
[1732296146243,0.5,99255.0,99254.0,0.3608]
[1732296146449,0.00060001,99268.0,99254.0,0.987]
[1732296146641,0.00060001,99268.0,99259.0,0.050315]
[1732296146840,0.050309,99271.0,99256.0,0.050316]
[1732296147042,0.050309,99271.0,99255.0,7.148e-05]
[1732296147043,0.050309,99271.0,99257.0,0.050315]
[1732296147239,0.031,99274.0,99262.0,0.3608]
[1732296147442,0.031,99274.0,99263.0,7.602e-05]
[1732296147643,0.050308,99273.0,99263.0,0.15067995]
[1732296147844,0.050309,99270.0,99263.0,0.15067995]
[1732296148157,0.050311,99268.0,99263.0,0.15067995]
[1732296148351,0.050309,99271.0,99263.0,0.15067995]
[1732296148551,0.031,99274.0,99263.0,0.15067995]
[1732296148746,0.05031,99268.0,99263.0,0.15067995]
[1732296148948,0.05031,99268.0,99264.0,0.10616]
[1732296149149,0.050312,99265.0,99263.0,0.15067995]
[1732296149344,0.050312,99265.0,99263.0,7.602e-05]
[1732296149843,0.3608,99264.0,99263.0,7.602e-05]
[1732296150649,0.050312,99265.0,99263.0,7.602e-05]
[1732296150954,0.3608,99264.0,99263.0,7.602e-05]
[1732296151153,0.050312,99264.0,99263.0,7.602e-05]
[1732296151758,0.411112,99264.0,99263.0,7.602e-05]
[1732296153449,0.050312,99264.0,99263.0,7.602e-05]
[1732296154253,0.050312,99264.0,99263.0,0.05007602]
[1732296156558,0.14033291,99264.0,99263.0,0.05007602]
[1732296156951,0.44257291,99264.0,99263.0,7.602e-05]
[1732296157258,0.05032,99249.0,99236.0,0.10616]
[1732296157463,0.05032,99249.0,99248.0,0.3708]
[1732296157665,0.05032,99249.0,99248.0,0.52224976]
[1732296158861,0.08984404,99262.0,99248.0,0.52224976]
[1732296159160,0.08984404,99258.0,99249.0,0.10616]
[1732296159366,0.050319,99250.0,99249.0,0.10616]
[1732296159863,0.08984404,99257.0,99249.0,0.15189859]
[1732296160059,0.08984404,99257.0,99250.0,0.10616]
[1732296160260,0.050318,99254.0,99250.0,0.10616]
[1732296160657,0.08984404,99259.0,99250.0,0.13756]
[1732296160852,0.08984404,99260.0,99257.0,0.3608]
[1732296161059,0.08984404,99261.0,99259.0,0.050314]
[1732296161259,0.08984404,99261.0,99259.0,0.12]
[1732296161664,0.08984404,99263.0,99260.0,0.45266382]
[1732296161868,0.08984404,99264.0,99260.0,0.15042382]
[1732296162067,0.08984404,99266.0,99260.0,0.51122382]
[1732296162270,0.08984404,99268.0,99265.0,0.050312]
[1732296162458,0.08984404,99268.0,99266.0,0.10616]
[1732296162661,0.08984404,99269.0,99266.0,0.25670524]
[1732296162966,0.08984404,99270.0,99268.0,0.3608]
[1732296163355,0.12002788,99275.0,99269.0,0.15110968]
[1732296163658,0.12002788,99276.0,99270.0,0.0318]
[1732296163862,0.17033388,99276.0,99271.0,0.033]
[1732296164267,0.050308,99272.0,99271.0,0.033]
[1732296164464,0.17013075,99272.0,99271.0,0.033]
[1732296164761,0.17013231,99272.0,99271.0,0.033]
[1732296164968,0.11982431,99272.0,99271.0,0.3352]
[1732296165167,0.07952807,99272.0,99271.0,0.53722467]
[1732296165668,0.07952807,99273.0,99272.0,0.050308]
[1732296166166,0.08988313,99275.0,99272.0,0.45380487]
[1732296166360,0.15003486,99288.0,99272.0,0.15160487]
[1732296166563,0.15003486,99286.0,99278.0,0.09754832]
[1732296167067,0.050304,99280.0,99279.0,0.15092403]
[1732296167266,0.050304,99280.0,99279.0,0.20092403]
[1732296167458,0.0001,99290.0,99275.0,0.10616]
[1732296167459,0.050306,99276.0,99275.0,0.10616]
[1732296167659,0.050306,99276.0,99275.0,0.14616]
[1732296168081,0.050306,99276.0,99275.0,0.29768073]
[1732296168274,0.050306,99276.0,99275.0,0.04]
[1732296168464,0.20034086,99276.0,99275.0,0.04]
[1732296168664,0.12775945,99276.0,99275.0,0.04]
[1732296169065,0.050306,99276.0,99275.0,0.04]
[1732296169259,0.12780718,99276.0,99275.0,0.04]
[1732296170972,0.1278233,99276.0,99275.0,0.04]
[1732296171474,0.12814018,99276.0,99275.0,0.04]
[1732296173281,0.48894018,99276.0,99275.0,0.04]
[1732296174364,0.71825003,99276.0,99260.0,0.09754832]
[1732296174570,0.18053143,99265.0,99260.0,0.05]
[1732296174773,0.050314,99261.0,99260.0,0.05]
[1732296174974,0.12814818,99261.0,99260.0,0.05]
[1732296175170,0.12814818,99261.0,99260.0,0.20124497]
[1732296175675,0.12814818,99261.0,99260.0,0.05]
[1732296175882,0.050321,99247.0,99240.0,0.10588]
[1732296176181,0.050321,99247.0,99232.0,0.0657]
[1732296176182,0.12743866,99247.0,99246.0,0.06151116]
[1732296176575,0.12732644,99247.0,99246.0,0.06151116]
[1732296177574,0.050321,99247.0,99246.0,0.06151116]
[1732296177882,0.12716946,99247.0,99246.0,0.00151116]
[1732296178283,0.050321,99247.0,99246.0,0.00151116]
[1732296178779,0.51175114,99248.0,99237.0,0.09754832]
[1732296178972,0.3608,99238.0,99237.0,0.14754832]
[1732296179174,0.3608,99238.0,99237.0,0.05]
[1732296179378,0.050322,99245.0,99242.0,0.050323]
[1732296179679,0.050322,99245.0,99243.0,0.050323]
[1732296179887,0.3608,99246.0,99237.0,0.100326]
[1732296180184,0.09020879,99238.0,99237.0,0.100326]
[1732296180382,0.411121,99246.0,99237.0,0.100326]
[1732296180383,0.09020879,99239.0,99237.0,0.100326]
[1732296180583,0.45100854,99238.0,99237.0,0.25128805]
[1732296180778,0.3608,99238.0,99237.0,0.20096205]
[1732296181185,0.3608,99246.0,99237.0,0.20096205]
[1732296181380,0.050321,99248.0,99245.0,0.050322]
[1732296181579,0.3608,99257.0,99237.0,0.30684205]
[1732296181886,0.09019,99244.0,99237.0,0.15588]
[1732296182082,0.09019,99244.0,99238.0,0.15184554]
[1732296182279,0.09019,99249.0,99238.0,0.15184554]
[1732296182480,0.05032,99249.0,99241.0,0.050324]
[1732296182687,0.09019,99250.0,99238.0,0.15184554]
[1732296182881,0.09019,99250.0,99237.0,0.51668]
[1732296183093,0.09019,99249.0,99244.0,0.050322]
[1732296183288,0.09019,99252.0,99244.0,0.050322]
[1732296183585,0.09019,99255.0,99245.0,0.050322]
[1732296183787,0.09019,99256.0,99240.0,0.050324]
[1732296184090,0.45099,99257.0,99246.0,0.09754832]
[1732296184289,0.3608,99257.0,99246.0,0.09754832]
[1732296184583,0.3608,99257.0,99256.0,0.050316]
[1732296184787,0.050317,99256.0,99251.0,0.050318]
[1732296184991,0.050317,99256.0,99252.0,0.050318]
[1732296185885,0.411116,99257.0,99251.0,0.06]
[1732296186084,0.050318,99254.0,99251.0,0.06]
[1732296186285,0.050318,99253.0,99251.0,0.06]
[1732296186489,0.050318,99252.0,99251.0,0.06]
[1732296188383,0.083418,99252.0,99240.0,0.09754832]
[1732296188581,0.050323,99243.0,99242.0,0.02]
[1732296189290,0.3608,99244.0,99243.0,0.050323]
[1732296189588,0.3608,99244.0,99242.0,0.02]
[1732296189788,0.050323,99243.0,99242.0,0.02]
[1732296189992,0.114923,99243.0,99242.0,0.02]
[1732296191191,0.050333,99224.0,99223.0,0.87743]
[1732296191394,0.411133,99224.0,99223.0,0.92743]
[1732296192597,0.050333,99224.0,99223.0,0.977763]
[1732296192891,0.05033,99230.0,99223.0,0.92743]
[1732296193087,0.050329,99231.0,99223.0,0.92743]
[1732296193394,0.3608,99232.0,99223.0,0.92743]
[1732296193588,0.050332,99225.0,99223.0,0.92743]
[1732296193785,0.050332,99225.0,99224.0,0.050333]
[1732296193995,0.3608,99232.0,99228.0,0.05033]
[1732296194196,0.3608,99232.0,99223.0,0.92795]
[1732296194397,0.05033,99229.0,99224.0,0.033]
[1732296194890,0.05033,99229.0,99226.0,0.050331]
[1732296195197,0.3608,99232.0,99225.0,0.15127006]
[1732296195394,0.3608,99232.0,99223.0,0.92795]
[1732296195699,0.411133,99224.0,99223.0,0.92743]
[1732296195889,0.050333,99224.0,99223.0,0.92743]
[1732296196090,0.411133,99224.0,99223.0,1.0805678]
[1732296196797,0.411133,99224.0,99223.0,0.92960144]
[1732296202301,0.411133,99224.0,99223.0,0.87960144]
[1732296204095,0.411133,99224.0,99223.0,0.88960144]
[1732296206605,0.411133,99224.0,99223.0,0.87960144]
[1732296206904,0.411133,99224.0,99223.0,0.88960144]
[1732296207198,0.411133,99224.0,99223.0,0.87960144]
[1732296208801,0.411133,99224.0,99223.0,0.89960144]
[1732296209504,0.3608,99224.0,99223.0,0.89960144]
[1732296209906,0.3608,99224.0,99223.0,0.93110144]
[1732296210203,0.050332,99225.0,99223.0,0.98143444]
[1732296210405,0.050329,99231.0,99223.0,0.93110144]
[1732296210606,0.050329,99231.0,99229.0,0.05033]
[1732296210802,0.05033,99229.0,99225.0,0.050332]
[1732296211001,0.050331,99228.0,99225.0,0.050332]
[1732296211201,0.050331,99228.0,99226.0,0.00217144]
[1732296211796,0.031,99243.0,99226.0,0.00217144]
[1732296212104,0.050326,99238.0,99231.0,0.050329]
[1732296212299,0.050323,99242.0,99234.0,0.00217144]
[1732296212608,0.050325,99238.0,99234.0,0.05217144]
[1732296212805,0.3608,99244.0,99234.0,0.05217144]
[1732296213009,0.3608,99244.0,99241.0,0.050324]
[1732296213204,0.3508,99244.0,99242.0,0.00217144]
[1732296213411,0.401122,99244.0,99242.0,0.1528065]
[1732296213611,0.0311,99260.0,99242.0,0.05249444]
[1732296213811,0.050318,99252.0,99250.0,0.09754832]
[1732296214005,0.050319,99251.0,99250.0,0.01]
[1732296214201,0.050319,99251.0,99250.0,0.01217144]
[1732296215913,0.3608,99256.0,99250.0,0.01217144]
[1732296216106,0.050319,99251.0,99250.0,0.01217144]
[1732296220315,0.050319,99251.0,99250.0,0.06213345]
[1732296224115,0.050319,99251.0,99250.0,0.05213345]
[1732296225011,0.050319,99251.0,99250.0,0.06213345]
[1732296225413,0.050317,99254.0,99253.0,0.050318]
[1732296225822,0.00151171,99267.0,99253.0,0.45406206]
[1732296226016,0.050311,99266.0,99257.0,0.09754832]
[1732296226325,0.050312,99265.0,99264.0,0.050312]
[1732296226516,0.050312,99265.0,99264.0,0.100312]
[1732296227322,0.050312,99265.0,99264.0,0.10248344]
[1732296227919,0.050312,99265.0,99264.0,0.05217144]
[1732296228314,0.411112,99265.0,99264.0,0.05217144]
[1732296229722,0.050309,99271.0,99266.0,0.050311]
[1732296229923,0.3608,99270.0,99264.0,0.05217144]
[1732296230125,0.3608,99265.0,99264.0,0.05217144]
[1732296230327,0.3608,99277.0,99264.0,0.05217144]
[1732296230530,0.411112,99265.0,99264.0,0.05217144]
[1732296231632,0.411112,99265.0,99264.0,0.15196207]
[1732296231831,0.411112,99265.0,99264.0,0.10165007]
[1732296232530,0.66304,99265.0,99230.0,0.09754832]
[1732296232726,0.66304,99265.0,99231.0,0.04]
[1732296232727,0.3608,99243.0,99231.0,0.04]
[1732296232931,0.3608,99232.0,99231.0,0.19079224]
[1732296233134,0.3608,99232.0,99231.0,0.04]
[1732296234528,0.3608,99243.0,99231.0,0.04]
[1732296234728,0.3608,99235.0,99233.0,0.050328]
[1732296235530,0.050323,99243.0,99231.0,0.04]
[1732296235730,0.050323,99243.0,99239.0,0.050325]
[1732296235930,0.050324,99242.0,99239.0,0.050325]
[1732296236333,0.3608,99245.0,99239.0,0.050325]
[1732296236635,0.3608,99240.0,99233.0,0.050328]
[1732296236935,0.050326,99238.0,99234.0,0.050327]
[1732296237127,0.050326,99238.0,99235.0,0.050327]
[1732296237631,0.050327,99235.0,99231.0,0.04]
[1732296237838,0.3608,99240.0,99233.0,0.050327]
[1732296238135,0.050326,99237.0,99234.0,0.10564]
[1732296238337,0.3608,99240.0,99234.0,0.10564]
[1732296238533,0.0326,99258.0,99235.0,0.45331176]
[1732296238739,0.050319,99251.0,99248.0,0.09754832]
[1732296239037,0.3608,99261.0,99249.0,0.28802964]
[1732296239038,0.28788858,99261.0,99249.0,0.28802964]
[1732296239224,0.33820258,99261.0,99255.0,0.050317]
[1732296239633,0.050315,99259.0,99255.0,0.050317]
[1732296239833,0.28788858,99261.0,99251.0,0.09754832]
[1732296240036,0.050317,99256.0,99253.0,0.050318]
[1732296240233,0.28788858,99261.0,99251.0,0.09754832]
[1732296240234,0.28788858,99261.0,99252.0,0.15195247]
[1732296240530,0.050313,99263.0,99260.0,0.050314]
[1732296240735,0.050314,99261.0,99260.0,0.05]
[1732296241132,0.050314,99261.0,99260.0,0.20076487]
[1732296242539,0.050314,99261.0,99260.0,0.30640487]
[1732296243434,0.3608,99272.0,99260.0,0.20076487]
[1732296243632,0.050314,99261.0,99260.0,0.30640487]
[1732296244435,0.3608,99263.0,99260.0,0.35671887]
[1732296244636,0.050314,99261.0,99260.0,0.30640487]
[1732296244833,0.3608,99263.0,99262.0,0.050313]
[1732296245040,0.050313,99261.0,99260.0,0.30640487]
[1732296245237,0.050313,99261.0,99260.0,0.15564]
[1732296245438,0.050313,99261.0,99260.0,0.30620492]
[1732296245638,0.050313,99261.0,99250.0,0.45886832]
[1732296245639,0.050319,99251.0,99250.0,0.00052]
[1732296245944,0.411119,99251.0,99230.0,0.09754832]
[1732296246144,0.3608,99251.0,99229.0,0.0623]
[1732296246335,0.050329,99230.0,99229.0,0.21335603]
[1732296246535,0.050329,99230.0,99229.0,0.0623]
[1732296246835,0.050329,99230.0,99229.0,0.21335603]
[1732296249545,0.050329,99230.0,99229.0,0.15105603]
[1732296251752,0.05033,99229.0,99223.0,0.87795]
[1732296251949,0.411132,99224.0,99223.0,0.87743]
[1732296252851,0.050347,99195.0,99185.0,0.00056]
[1732296253043,0.050347,99195.0,99170.0,0.3608]
[1732296253044,0.050359,99172.0,99171.0,0.0322]
[1732296253450,0.050359,99172.0,99171.0,0.18426306]
[1732296253645,0.050357,99175.0,99171.0,0.54506306]
[1732296253846,0.3608,99194.0,99171.0,0.55506306]
[1732296254047,0.050356,99178.0,99174.0,0.050357]
[1732296254355,0.3608,99194.0,99171.0,0.55506306]
[1732296254356,0.050357,99175.0,99171.0,0.39352]
[1732296254651,0.050357,99175.0,99172.0,0.15210377]
[1732296255348,0.050358,99174.0,99172.0,0.15210377]
[1732296255947,0.050358,99174.0,99171.0,0.36132]
[1732296255948,0.050359,99172.0,99171.0,0.3608]
[1732296256453,0.050362,99166.0,99165.0,0.00151243]
[1732296256645,0.411162,99166.0,99165.0,0.00151243]
[1732296257148,0.713682,99166.0,99165.0,0.00151243]
[1732296257349,0.05037,99150.0,99149.0,0.3608]
[1732296257957,0.050376,99139.0,99137.0,0.3608]
[1732296258170,0.050376,99139.0,99138.0,5.914e-05]
[1732296258563,0.050386,99118.0,99117.0,0.00151325]
[1732296258757,0.3608,99139.0,99117.0,0.00151325]
[1732296258758,0.050383,99125.0,99117.0,0.00151325]
[1732296258971,0.3608,99130.0,99118.0,0.15100373]
[1732296259270,0.3608,99130.0,99120.0,0.09754832]
[1732296259467,0.3608,99130.0,99117.0,0.00151325]
[1732296259668,0.050379,99133.0,99120.0,0.09754832]
[1732296259966,0.3608,99139.0,99117.0,0.00151325]
[1732296260175,0.050385,99120.0,99117.0,0.00151325]
[1732296260666,0.3608,99128.0,99117.0,0.00151325]
[1732296260967,0.3608,99128.0,99120.0,0.050385]
[1732296261665,0.3608,99128.0,99120.0,0.060385]
[1732296261870,0.3608,99128.0,99127.0,0.050382]
[1732296262058,0.3608,99139.0,99132.0,0.050379]
[1732296262367,0.3608,99139.0,99133.0,0.112378]
[1732296262571,0.3608,99139.0,99133.0,0.031]
[1732296262769,0.3608,99139.0,99126.0,0.3608]
[1732296262958,0.050379,99133.0,99126.0,0.3608]
[1732296263158,0.3608,99139.0,99127.0,0.15188979]
[1732296263565,0.050377,99136.0,99127.0,0.15188979]
[1732296263759,0.050377,99136.0,99127.0,0.25226667]
[1732296264167,0.3608,99139.0,99133.0,0.050378]
[1732296264467,0.3608,99139.0,99127.0,0.21188567]
[1732296264468,0.050377,99137.0,99128.0,0.0626]
[1732296264673,0.050377,99137.0,99128.0,0.112981]
[1732296264973,0.3608,99139.0,99128.0,0.21358259]
[1732296265273,0.050378,99134.0,99128.0,0.21358259]
[1732296265873,0.050379,99133.0,99128.0,0.21358259]
[1732296266375,0.05038,99131.0,99128.0,0.21358259]
[1732296266574,0.3608,99139.0,99128.0,0.00212285]
[1732296266875,0.05038,99130.0,99128.0,0.00212285]
[1732296267174,0.3608,99130.0,99117.0,0.00151325]
[1732296267367,0.050386,99118.0,99117.0,0.06295847]
[1732296267568,0.050386,99118.0,99117.0,0.01151325]
[1732296269175,0.050386,99118.0,99117.0,0.01]
[1732296270465,0.050395,99101.0,99098.0,0.3608]
[1732296270671,0.050395,99101.0,99100.0,0.15]
[1732296270863,0.353115,99101.0,99100.0,0.1]
[1732296271071,0.30272,99101.0,99088.0,0.3608]
[1732296271369,0.050408,99076.0,99070.0,0.15052914]
[1732296271569,0.050408,99076.0,99070.0,0.27052914]
[1732296271768,0.050408,99075.0,99070.0,0.17041]
[1732296271969,0.050408,99075.0,99071.0,0.15052914]
[1732296272467,0.050412,99067.0,99065.0,0.3608]
[1732296273180,0.050417,99057.0,99053.0,0.0332]
[1732296273476,0.050417,99057.0,99054.0,0.15106517]
[1732296273663,0.050416,99060.0,99056.0,0.050417]
[1732296273872,0.3608,99066.0,99060.0,0.050416]
[1732296274070,0.050414,99063.0,99054.0,0.050418]
[1732296274270,0.3608,99066.0,99054.0,0.050418]
[1732296274271,0.050416,99060.0,99054.0,0.02]
[1732296274475,0.050416,99059.0,99055.0,0.15164224]
[1732296274778,0.3608,99066.0,99055.0,0.15164224]
[1732296275071,0.050418,99057.0,99055.0,0.15164224]
[1732296275379,0.3608,99066.0,99040.0,0.14630588]
[1732296275575,0.050418,99056.0,99048.0,0.050421]
[1732296275879,0.3608,99066.0,99046.0,0.5108]
[1732296275880,0.050419,99053.0,99047.0,0.15070797]
[1732296276072,0.050419,99053.0,99046.0,0.5114]
[1732296276378,0.050421,99050.0,99048.0,0.15071565]
[1732296276571,0.050421,99050.0,99047.0,0.15071565]
[1732296276877,0.1058,99058.0,99046.0,0.3614]
[1732296277070,0.050421,99049.0,99046.0,0.3614]
[1732296277271,0.050419,99053.0,99046.0,0.3614]
[1732296277466,0.3608,99066.0,99046.0,0.3614]
[1732296277467,0.3608,99066.0,99046.0,0.3608]
[1732296277673,0.1058,99058.0,99047.0,0.050422]
[1732296277869,0.05042,99052.0,99046.0,0.3608]
[1732296278078,0.050421,99050.0,99046.0,0.3608]
[1732296278278,0.050421,99050.0,99046.0,0.3708]
[1732296278469,0.1058,99058.0,99046.0,0.3708]
[1732296278666,0.156217,99058.0,99046.0,0.3708]
[1732296278863,0.1058,99058.0,99046.0,0.3708]
[1732296279068,0.1058,99058.0,99046.0,0.421223]
[1732296279277,0.1058,99058.0,99046.0,0.3708]
[1732296279480,0.05042,99052.0,99046.0,0.3708]
[1732296280279,0.050414,99063.0,99046.0,0.3708]
[1732296280479,0.3608,99066.0,99055.0,0.050418]
[1732296280780,0.3608,99066.0,99055.0,0.390417]
[1732296281374,0.3608,99066.0,99055.0,0.34]
[1732296281575,0.050416,99057.0,99055.0,0.34]
[1732296282081,0.3608,99066.0,99055.0,0.34]
[1732296282282,0.050416,99056.0,99055.0,0.34]
[1732296283285,0.050416,99056.0,99055.0,0.3900562]
[1732296283485,0.411216,99056.0,99055.0,0.3900562]
[1732296283696,0.714096,99056.0,99055.0,0.0500562]
[1732296283877,0.714096,99056.0,99037.0,0.050422]
[1732296284078,0.714096,99056.0,99030.0,0.0953]
[1732296284079,0.050424,99035.0,99030.0,0.14497836]
[1732296284279,0.050425,99032.0,99031.0,5.373e-05]
[1732296284580,0.3608,99036.0,99031.0,5.373e-05]
[1732296284784,0.411223,99036.0,99035.0,0.050424]
[1732296285676,0.3608,99036.0,99035.0,0.050424]
[1732296286086,0.05042,99042.0,99041.0,0.050419]
[1732296286282,0.05042,99042.0,99041.0,0.060419]
[1732296286481,0.411223,99046.0,99045.0,0.050423]
[1732296286679,0.3608,99046.0,99045.0,0.050423]
[1732296286877,0.3608,99054.0,99045.0,0.05047673]
[1732296287082,0.3608,99054.0,99053.0,0.050419]
[1732296287278,0.050416,99060.0,99057.0,0.050417]
[1732296287482,0.050416,99060.0,99053.0,0.03]
[1732296287483,0.050417,99059.0,99058.0,0.050417]
[1732296287786,0.050415,99062.0,99054.0,0.0332]
[1732296287987,0.3608,99067.0,99054.0,0.0332]
[1732296288287,0.3608,99067.0,99053.0,0.03]
[1732296288288,0.050419,99054.0,99053.0,0.03]
[1732296289294,0.411216,99059.0,99053.0,0.03]
[1732296289585,0.411216,99059.0,99058.0,0.050417]
[1732296289785,0.3608,99059.0,99058.0,0.050417]
[1732296289983,0.411216,99059.0,99058.0,0.280417]
[1732296290381,0.3608,99059.0,99058.0,0.280417]
[1732296290793,0.050413,99065.0,99064.0,0.050414]
[1732296290984,0.3608,99067.0,99059.0,0.0327]
[1732296291285,0.3608,99067.0,99065.0,0.050413]
[1732296291491,0.3608,99067.0,99059.0,0.0635]
[1732296291684,0.050415,99063.0,99061.0,0.050415]
[1732296291989,0.3608,99067.0,99065.0,0.050413]
[1732296292185,0.3608,99067.0,99066.0,5.373e-05]
[1732296292690,0.3608,99067.0,99066.0,0.03015373]
[1732296293390,0.3108,99067.0,99066.0,0.03015373]
[1732296293600,0.3608,99082.0,99066.0,0.39095373]
[1732296293788,0.3608,99082.0,99080.0,0.050405]
[1732296294097,0.031,99109.0,99080.0,0.050405]
[1732296294098,0.0504,99092.0,99084.0,0.050404]
[1732296294283,0.00151416,99102.0,99084.0,0.050404]
[1732296294284,0.050397,99098.0,99084.0,0.050404]
[1732296294490,0.050399,99093.0,99084.0,0.050404]
[1732296294795,0.00151416,99102.0,99084.0,0.050404]
[1732296295183,0.3608,99096.0,99084.0,0.050404]
[1732296295394,0.3608,99087.0,99082.0,0.0319]
[1732296295897,0.050405,99082.0,99081.0,5.373e-05]
[1732296296687,0.3608,99087.0,99082.0,0.050405]
[1732296296893,0.3608,99087.0,99081.0,5.373e-05]
[1732296297091,0.050404,99083.0,99081.0,5.373e-05]
[1732296297294,0.050405,99082.0,99081.0,5.373e-05]
[1732296298696,0.3608,99087.0,99084.0,0.050404]
[1732296299597,0.3608,99096.0,99084.0,0.050404]
[1732296300901,0.00151416,99102.0,99101.0,0.050395]
[1732296301194,0.05190916,99102.0,99101.0,0.27]
[1732296301598,0.00151416,99102.0,99101.0,0.27]
[1732296301792,0.00151416,99102.0,99101.0,0.320395]
[1732296302390,0.00151416,99102.0,99101.0,0.47155038]
[1732296303198,0.00151416,99102.0,99101.0,0.57731038]
[1732296305700,0.48101276,99139.0,99110.0,0.05039]
[1732296305701,0.0325,99134.0,99110.0,0.05039]
[1732296305902,0.00060001,99139.0,99126.0,0.3608]
[1732296306090,0.00056001,99140.0,99134.0,0.3608]
[1732296306404,0.0306,99152.0,99134.0,0.35967614]
[1732296306598,0.36291364,99159.0,99140.0,0.1465797]
[1732296306908,0.00211364,99159.0,99155.0,0.411168]
[1732296307101,0.0318,99178.0,99155.0,0.411168]
[1732296307102,0.09019,99197.0,99156.0,0.30256]
[1732296307304,0.1,99200.0,99192.0,0.3608]
[1732296307892,0.14954069,99200.0,99192.0,0.3608]
[1732296308103,0.14954069,99200.0,99193.0,7.012e-05]
[1732296310502,0.14954069,99200.0,99199.0,0.050345]
[1732296310802,0.1,99200.0,99193.0,7.012e-05]
[1732296312001,0.1,99200.0,99198.0,0.050346]
[1732296313204,0.1,99200.0,99199.0,0.15124054]
[1732296316009,0.1,99200.0,99199.0,0.16124054]
[1732296318398,0.1,99200.0,99199.0,0.01]
[1732296318599,0.1,99200.0,99193.0,7.012e-05]
[1732296318806,0.050346,99198.0,99193.0,0.01007012]
[1732296319106,0.1,99200.0,99193.0,0.01007012]
[1732296319811,0.1,99200.0,99196.0,0.050347]
[1732296320804,0.050345,99199.0,99193.0,0.01007012]
[1732296321006,0.050346,99198.0,99193.0,0.01007012]
[1732296321308,0.050346,99197.0,99193.0,0.01007012]
[1732296321913,0.1,99200.0,99193.0,0.01007012]
[1732296322106,0.050347,99196.0,99193.0,0.01007012]
[1732296322304,0.1,99200.0,99193.0,0.01007012]
[1732296322511,0.050347,99196.0,99193.0,0.01007012]
[1732296323000,0.1,99200.0,99193.0,0.01007012]
[1732296323407,0.050347,99195.0,99193.0,0.01007012]
[1732296323617,0.050348,99194.0,99193.0,0.01007012]
[1732296326314,0.352788,99194.0,99193.0,0.01007012]
[1732296326612,0.352788,99194.0,99177.0,0.3608]
[1732296326613,0.050356,99178.0,99177.0,0.3608]
[1732296326812,0.050356,99178.0,99165.0,0.3608]
[1732296327020,0.050362,99166.0,99165.0,0.4108]
[1732296327213,0.050362,99166.0,99165.0,0.05]
[1732296327408,0.05037,99151.0,99150.0,0.3608]
[1732296328928,0.05037,99151.0,99150.0,0.3708]
[1732296329312,0.05037,99151.0,99150.0,0.3608]
[1732296329723,0.05037,99151.0,99150.0,0.3708]
[1732296329924,0.05037,99151.0,99150.0,0.3608]
[1732296331628,0.050379,99132.0,99131.0,0.3608]
[1732296332027,0.353019,99132.0,99118.0,0.3608]
[1732296332231,0.050386,99119.0,99118.0,0.3608]
[1732296332526,0.050391,99109.0,99106.0,0.3608]
[1732296332728,0.050388,99114.0,99111.0,0.05039]
[1732296332921,0.050389,99112.0,99111.0,0.05039]
[1732296333119,0.050392,99108.0,99106.0,0.3914]
[1732296333327,0.050392,99108.0,99106.0,0.3608]
[1732296333721,0.050392,99108.0,99089.0,0.050401]
[1732296333919,0.050392,99108.0,99089.0,0.03]
[1732296333920,0.0035169,99107.0,99089.0,0.03]
[1732296334127,0.10564,99109.0,99086.0,0.15158238]
[1732296334334,0.3608,99103.0,99083.0,0.3608]
[1732296334538,0.050403,99085.0,99083.0,0.3608]
[1732296334927,0.0504,99092.0,99083.0,0.3608]
[1732296335131,0.050398,99096.0,99091.0,0.3608]
[1732296335332,0.050398,99096.0,99092.0,0.050399]
[1732296335536,0.3608,99103.0,99092.0,0.050399]
[1732296335727,0.411194,99103.0,99091.0,0.3608]
[1732296335929,0.3608,99103.0,99091.0,0.3708]
[1732296336628,0.050393,99105.0,99098.0,0.050396]
[1732296336824,0.050394,99104.0,99098.0,0.050396]
[1732296337226,0.10568,99116.0,99092.0,5.239e-05]
[1732296337431,0.050393,99105.0,99100.0,0.1465797]
[1732296337631,0.050393,99105.0,99098.0,0.01]
[1732296338734,0.10568,99116.0,99098.0,0.01]
[1732296338935,0.10568,99116.0,99102.0,0.3608]
[1732296339433,0.3608,99123.0,99102.0,0.3608]
[1732296339637,0.050388,99115.0,99102.0,0.411194]
[1732296339830,0.10568,99118.0,99102.0,0.411194]
[1732296340233,0.10568,99118.0,99103.0,0.050394]
[1732296340438,0.050391,99110.0,99103.0,0.050394]
[1732296340640,0.050393,99105.0,99102.0,0.3608]
[1732296341035,0.050394,99104.0,99102.0,0.3608]
[1732296341242,0.10568,99103.0,99102.0,0.3608]
[1732296341437,0.4084,99103.0,99102.0,0.3608]
[1732296341934,0.4389,99103.0,99102.0,0.3608]
[1732296342641,0.53856398,99103.0,99102.0,0.3608]
[1732296342843,0.050399,99093.0,99092.0,5.239e-05]
[1732296343138,0.050399,99093.0,99092.0,0.02005239]
[1732296343744,0.353159,99093.0,99092.0,5.239e-05]
[1732296344840,0.458839,99093.0,99092.0,5.239e-05]
[1732296346136,1.119639,99093.0,99092.0,3.9e-07]
[1732296347042,0.819639,99093.0,99092.0,3.9e-07]
[1732296347442,1.119639,99093.0,99092.0,3.9e-07]